bitfinex/quotes_ETHUSD_20250426
["timestamp","ask_amount","ask_price","bid_price","bid_amount"]
[1745667102857,0.7738,1796.3,1795.6,7.79699196]
[1745667102858,0.8149,1796.2,1795.6,7.29582672]
[1745667103071,0.8149,1796.0,1795.6,5.5690132]
[1745667103535,0.8149,1796.0,1795.6,11.13796998]
[1745667103739,0.8149,1796.0,1795.7,5.56877961]
[1745667104257,0.8149,1796.0,1795.6,5.56897508]
[1745667104470,0.8149,1796.0,1795.4,5.56960139]
[1745667104471,0.8149,1795.9,1795.4,5.56960139]
[1745667104623,0.8149,1795.9,1795.5,5.56945699]
[1745667104940,0.8149,1795.9,1795.6,5.56904538]
[1745667105141,0.8149,1795.9,1795.5,5.56928497]
[1745667105444,0.8149,1795.9,1795.5,5.56924738]
[1745667106238,0.8149,1795.8,1794.8,0.7537]
[1745667106470,3.0,1795.6,1795.2,0.7537]
[1745667106769,3.0,1795.6,1795.4,5.56962758]
[1745667106964,4.904,1795.7,1795.6,5.56916907]
[1745667107533,4.904,1795.7,1795.6,6.07046848]
[1745667107866,4.904,1795.7,1795.6,7.30983325]
[1745667108952,0.8149,1796.2,1796.0,5.56785486]
[1745667109170,4.904,1796.1,1796.0,5.56785486]
[1745667109371,4.904,1796.1,1795.7,5.56870318]
[1745667109576,4.904,1796.1,1795.7,5.56856689]
[1745667109739,4.904,1796.1,1795.8,5.56837749]
[1745667111280,0.7593,1796.0,1795.6,1.23936477]
[1745667111454,3.7593,1796.0,1795.6,5.56900863]
[1745667112479,3.7593,1796.0,1795.5,5.56924017]
[1745667112650,3.7593,1796.0,1795.5,5.5692149]
[1745667112839,4.682819,1796.0,1795.5,5.5692149]
[1745667113147,4.682819,1796.0,1795.5,5.56924372]
[1745667114171,4.682819,1796.0,1795.6,5.56894031]
[1745667114939,4.682819,1796.0,1795.7,5.56877376]
[1745667116871,3.7593,1796.0,1795.7,11.13746643]
[1745667117052,0.7593,1796.0,1795.9,5.56823876]
[1745667117257,4.904,1796.1,1795.9,5.56823876]
[1745667118379,4.904,1796.1,1795.8,5.5683127]
[1745667120238,4.904,1796.1,1795.7,5.56885176]
[1745667120239,0.8031,1796.0,1795.7,5.56866266]
[1745667120678,0.8031,1796.0,1795.6,5.56902242]
[1745667121971,0.8031,1796.0,1795.5,5.56933724]
[1745667122679,3.8031,1796.0,1795.3,0.50129941]
[1745667122887,0.8031,1795.9,1795.3,5.569931]
[1745667123385,0.7812,1795.8,1795.2,11.14044829]
[1745667123691,3.7812,1795.6,1795.3,5.57009026]
[1745667124292,3.7812,1795.6,1795.3,5.56989846]
[1745667124462,3.7812,1795.6,1795.4,5.56961762]
[1745667124847,3.7812,1795.6,1795.3,5.56991225]
[1745667125585,3.7812,1795.6,1795.4,5.56965726]
[1745667125786,3.0,1795.6,1795.4,5.56965726]
[1745667125960,3.0,1795.6,1795.3,5.5700997]
[1745667126348,3.0,1795.6,1795.3,11.1399648]
[1745667126698,3.0,1795.6,1795.3,5.5698651]
[1745667128066,3.0,1795.6,1795.3,5.56988868]
[1745667129479,0.8011,1795.9,1795.7,5.56867363]
[1745667129646,0.8011,1795.9,1795.5,0.50129941]
[1745667129846,0.8011,1795.9,1795.3,6.68411587]
[1745667129847,0.8011,1795.8,1795.3,6.68395567]
[1745667130187,0.8011,1795.8,1795.7,5.56885894]
[1745667130478,5.6681,1796.0,1795.8,5.56826021]
[1745667131053,5.6681,1796.0,1795.7,5.56867455]
[1745667131251,5.6681,1796.0,1795.5,5.56929963]
[1745667131252,0.8011,1795.9,1795.5,5.56929963]
[1745667131665,3.8011,1795.9,1795.4,5.56963539]
[1745667131861,4.66791,1795.9,1795.4,5.56955706]
[1745667132371,4.66791,1795.9,1795.3,5.56997745]
[1745667132547,4.66791,1795.9,1795.3,5.56984218]
[1745667132548,0.8011,1795.8,1795.3,5.56984218]
[1745667133066,0.8011,1795.8,1795.4,5.56977921]
[1745667133987,0.8011,1795.8,1795.4,11.13911684]
[1745667134193,0.8011,1795.8,1795.4,12.25302852]
[1745667134498,0.3070348,1795.9,1795.7,5.56885894]
[1745667134664,0.3070348,1795.9,1795.8,6.06984824]
[1745667134863,5.6229,1796.0,1795.8,5.56854883]
[1745667135286,4.867,1796.0,1795.9,5.56823876]
[1745667135506,4.867,1796.0,1795.9,6.80837746]
[1745667135715,16.713,1796.2,1796.1,5.56761872]
[1745667135856,4.867,1796.5,1796.4,5.56668893]
[1745667138163,4.867,1796.5,1796.1,6.33083036]
[1745667138403,5.6229,1796.5,1796.2,5.5672954]
[1745667138563,5.6229,1796.5,1796.3,5.56687049]
[1745667140685,5.6229,1796.5,1796.3,5.56675026]
[1745667140884,5.6229,1796.5,1796.4,5.56668893]
[1745667141085,4.867,1796.5,1796.4,5.56668893]
[1745667144504,16.765,1796.9,1796.8,5.56544968]
[1745667144673,21.63,1796.9,1796.8,5.56544968]
[1745667145978,0.05,1796.9,1796.8,6.6785607]
[1745667147700,0.05,1796.9,1796.8,7.4418607]
[1745667148812,1e-08,1796.9,1796.8,7.94316011]
[1745667148971,1e-08,1796.9,1796.8,7.4418607]
[1745667150696,1e-08,1796.9,1796.8,10.94316011]
[1745667150899,1e-08,1796.9,1796.8,11.61781507]
[1745667151212,1e-08,1796.9,1796.8,10.4418607]
[1745667152002,1e-08,1796.9,1796.8,10.4390016]
[1745667152213,1e-08,1796.9,1796.8,7.4390016]
[1745667152503,1e-08,1796.9,1796.8,7.94030101]
[1745667156413,1e-08,1796.9,1796.8,7.4390016]
[1745667156623,1e-08,1796.9,1796.8,7.94030101]
[1745667156837,1e-08,1796.9,1796.8,11.44160042]
[1745667157309,1e-08,1796.9,1796.8,10.94030101]
[1745667157697,1e-08,1796.9,1796.8,7.4390016]
[1745667159528,1e-08,1796.9,1796.8,12.8057016]
[1745667161426,1e-08,1796.9,1796.8,11.69259058]
[1745667166641,1e-08,1796.9,1796.8,12.19388999]
[1745667168629,1e-08,1796.9,1796.8,13.00608999]
[1745667181535,1e-08,1796.9,1796.8,12.19388999]
[1745667181958,1e-08,1796.9,1796.8,11.69259058]
[1745667182110,1e-08,1796.9,1796.8,12.19388999]
[1745667183027,1e-08,1796.9,1796.8,14.72014504]
[1745667184857,1e-08,1796.9,1796.8,13.96984504]
[1745667185175,1e-08,1796.9,1796.8,12.19388999]
[1745667188660,1e-08,1796.9,1796.8,11.69259058]
[1745667189836,1e-08,1796.9,1796.8,12.19388999]
[1745667192433,1e-08,1796.9,1796.8,11.69259058]
[1745667192628,0.80870001,1796.9,1796.8,11.69259058]
[1745667196568,0.80870001,1796.9,1796.5,6.13]
[1745667196876,0.8191,1796.4,1796.0,6.13]
[1745667197027,0.8191,1796.1,1796.0,6.13]
[1745667197234,0.8191,1796.0,1795.7,6.13]
[1745667197663,0.8191,1795.9,1795.7,6.13]
[1745667198879,0.8191,1795.9,1795.7,11.69871155]
[1745667199861,0.8191,1795.9,1795.7,6.13]
[1745667200468,0.8191,1795.9,1795.7,11.69875495]
[1745667201971,0.8191,1795.9,1795.8,5.56854883]
[1745667202172,0.8191,1795.9,1795.7,11.6986737]
[1745667202543,0.8191,1795.9,1795.7,6.13]
[1745667203387,0.8191,1795.9,1795.8,5.56854883]
[1745667203569,0.8191,1795.9,1795.7,11.69867716]
[1745667204149,0.8191,1795.9,1795.8,5.56854883]
[1745667205095,0.8191,1795.9,1795.7,6.13]
[1745667205251,1.20101,1795.9,1795.7,6.13]
[1745667206750,0.8191,1795.9,1795.7,6.13]
[1745667207474,0.8191,1795.9,1795.7,11.69876286]
[1745667207787,0.8191,1795.9,1795.7,11.69862476]
[1745667208681,0.8191,1795.9,1795.7,17.26724804]
[1745667208985,0.8191,1795.9,1795.7,11.69862328]
[1745667209402,0.8191,1795.9,1795.7,17.26729693]
[1745667209695,3.0,1796.0,1795.9,5.56823876]
[1745667210259,5.6368,1796.1,1796.0,5.56792873]
[1745667210492,8.6368,1796.1,1796.0,5.56792873]
[1745667210991,5.6368,1796.1,1796.0,5.56792873]
[1745667211192,5.6368,1796.1,1795.9,5.56823876]
[1745667211901,5.6368,1796.1,1796.0,5.56792873]
[1745667212271,4.886,1796.1,1796.0,5.56792873]
[1745667216377,4.886,1796.1,1795.9,5.56821033]
[1745667217206,4.886,1796.1,1795.8,5.56833502]
[1745667217811,4.886,1796.1,1795.8,11.13665033]
[1745667218478,4.886,1796.1,1795.8,5.56831531]
[1745667218695,4.886,1796.1,1795.8,5.56830067]
[1745667218903,0.7667,1796.0,1795.8,5.56830067]
[1745667219602,0.7667,1796.0,1795.7,11.69870807]
[1745667219808,0.7667,1796.0,1795.7,17.2673331]
[1745667220007,0.7667,1796.0,1795.8,5.5685182]
[1745667221604,0.7667,1796.0,1795.7,11.69870754]
[1745667221800,0.7667,1796.0,1795.7,17.26735348]
[1745667221983,0.7667,1796.0,1795.8,5.5685348]
[1745667222313,4.886,1795.9,1795.8,5.5685348]
[1745667229916,4.886,1795.9,1795.8,6.4003348]
[1745667230110,4.886,1795.9,1795.8,7.6012698]
[1745667231515,4.886,1795.9,1795.8,5.5685348]
[1745667232018,4.886,1795.9,1795.8,11.6985348]
[1745667241749,0.30819145,1796.1,1796.0,5.56792873]
[1745667242334,4.886,1796.2,1796.1,5.56761872]
[1745667244999,0.75460001,1796.9,1796.8,5.56544968]
[1745667245281,4.81000001,1796.9,1796.8,5.56544968]
[1745667245451,4.81000001,1796.9,1796.8,7.50055963]
[1745667245846,4.81000001,1796.9,1796.8,13.63055963]
[1745667245847,1e-08,1796.9,1796.8,13.63055963]
[1745667249361,4.809,1797.7,1797.6,5.56297285]
[1745667249553,4.809,1797.7,1797.6,11.69297284]
[1745667250585,5.5636,1797.7,1797.6,6.12999999]
[1745667250794,9.41996,1797.7,1797.6,6.12999999]
[1745667255369,3.0,1797.6,1797.3,6.12999999]
[1745667256239,3.0,1797.6,1797.3,11.6938835]
[1745667256441,0.7546,1797.4,1797.3,6.12999999]
[1745667260881,3.8133,1797.6,1797.3,6.12999999]
[1745667262073,3.8133,1797.6,1797.3,11.69384568]
[1745667262283,3.8133,1797.6,1797.3,6.12999999]
[1745667264184,4.761166,1797.6,1797.3,6.12999999]
[1745667265588,3.8133,1797.6,1797.3,6.12999999]
[1745667265884,3.8133,1797.6,1797.3,11.69365929]
[1745667266747,3.0,1797.6,1797.4,5.56348201]
[1745667266948,3.0,1797.6,1797.3,12.4863952]
[1745667268797,3.0,1797.6,1797.3,12.48630552]
[1745667270362,3.0,1797.6,1797.4,5.56349319]
[1745667273700,3.0,1797.6,1797.4,5.56339348]
[1745667273869,3.0,1797.6,1797.5,5.56328233]
[1745667274596,3.0,1797.6,1797.4,5.56336437]
[1745667275690,4.809,1797.7,1797.4,5.56336437]
[1745667275996,4.809,1797.7,1797.5,5.56326701]
[1745667276161,4.809,1797.7,1797.5,5.5630987]
[1745667276352,5.11769542,1797.7,1797.5,5.5630987]
[1745667277695,5.11769542,1797.7,1797.3,6.12999999]
[1745667277881,0.50129941,1797.5,1797.3,6.12999999]
[1745667278190,0.30869542,1797.5,1797.3,6.12999999]
[1745667278862,0.8024,1797.4,1797.3,6.12999999]
[1745667279277,1.11109542,1797.4,1797.3,6.12999999]
[1745667279780,1.66109542,1797.4,1796.9,0.7982]
[1745667279963,3.0,1797.2,1796.9,0.7982]
[1745667280284,3.0,1797.2,1796.9,6.36314605]
[1745667281301,0.8024,1797.1,1796.8,6.12999999]
[1745667284566,0.8024,1797.1,1796.8,11.69536626]
[1745667284767,0.8024,1797.1,1796.8,17.26059869]
[1745667285180,0.8024,1797.1,1796.8,11.69523242]
[1745667285583,3.0,1797.2,1796.9,5.56510265]
[1745667287204,3.0,1797.2,1796.9,7.56731291]
[1745667287901,3.0,1797.2,1796.9,1.16951026]
[1745667288104,3.0,1797.2,1796.8,11.6952102]
[1745667290693,0.8174,1797.1,1796.8,6.12999999]
[1745667292320,0.8174,1797.1,1796.8,11.6953195]
[1745667292468,0.8174,1797.1,1796.9,5.56502426]
[1745667292874,5.20927283,1797.3,1797.2,5.56421099]
[1745667292875,4.797,1797.3,1797.2,5.56421099]
[1745667293487,4.797,1797.3,1797.2,6.39171099]
[1745667294016,0.55129941,1797.9,1797.7,5.56246705]
[1745667294017,0.05,1797.9,1797.7,5.56246705]
[1745667294223,0.05,1797.9,1797.8,6.38985398]
[1745667294374,0.05,1797.9,1797.8,12.51985397]
[1745667295296,0.05,1797.9,1797.8,14.32808607]
[1745667296643,3.8561,1797.9,1797.8,6.12999999]
[1745667297255,3.05,1797.9,1797.8,6.12999999]
[1745667300067,3.05,1797.9,1797.8,11.69235397]
[1745667300423,3.05,1797.9,1797.8,12.47445397]
[1745667300861,3.05,1797.9,1797.8,6.12999999]
[1745667301169,3.04723047,1797.9,1797.8,11.69235397]
[1745667301361,0.04723047,1797.9,1797.8,13.41783955]
[1745667301710,0.04723047,1797.9,1797.8,14.19993955]
[1745667303302,4.796,1798.5,1798.1,6.34272594]
[1745667303477,4.796,1798.5,1798.4,6.34179822]
[1745667303675,4.796,1798.5,1798.4,12.4717982]
[1745667304096,4.796,1798.5,1798.4,6.12999998]
[1745667304495,8.2756,1798.5,1798.4,6.12999998]
[1745667309079,7.796,1798.5,1798.4,11.6904982]
[1745667309275,4.796,1798.5,1798.4,11.6904982]
[1745667310185,4.796,1798.5,1798.4,6.12999998]
[1745667310578,4.796,1798.5,1798.4,11.6904982]
[1745667311186,4.796,1798.5,1798.4,6.12999998]
[1745667312007,4.796,1798.5,1798.4,12.93912487]
[1745667313284,4.796,1798.5,1798.4,6.12999998]
[1745667313489,4.796,1798.5,1798.4,11.6904982]
[1745667313798,7.796,1798.5,1798.4,6.12999998]
[1745667314001,3.7544,1798.4,1797.9,6.12999998]
[1745667314174,4.534,1798.4,1797.9,6.12999998]
[1745667314392,4.534,1798.4,1797.9,11.69203652]
[1745667314679,3.7544,1798.4,1798.1,5.56129302]
[1745667315397,3.0,1798.4,1798.1,6.35699302]
[1745667317385,3.0,1798.4,1798.1,6.35688992]
[1745667317791,3.0,1798.4,1798.2,5.56110146]
[1745667318001,4.796,1798.5,1798.2,5.56093942]
[1745667318209,7.796,1798.5,1798.2,6.809666]
[1745667318412,7.796,1798.5,1798.1,12.48694502]
[1745667318727,7.796,1798.5,1798.2,5.56099952]
[1745667319422,7.796,1798.5,1798.2,5.56092363]
[1745667319619,7.796,1798.5,1798.2,5.56091767]
[1745667319828,7.796,1798.5,1798.4,5.56049822]
[1745667321428,4.796,1798.5,1798.4,7.28561551]
[1745667322130,4.796,1798.5,1798.4,8.09951551]
[1745667323040,3.0,1798.4,1798.3,6.12999998]
[1745667325032,5.6284,1798.5,1798.3,6.12999998]
[1745667325234,5.62120832,1798.5,1798.3,6.12999998]
[1745667325401,4.78880832,1798.5,1798.3,6.12999998]
[1745667331531,5.09704075,1798.5,1798.3,6.12999998]
[1745667332667,5.09704075,1798.5,1798.4,5.56049822]
[1745667332874,5.09704075,1798.5,1798.3,12.85976748]
[1745667333370,5.09704075,1798.5,1798.3,18.42035269]
[1745667333576,4.78880832,1798.5,1798.3,12.85969491]
[1745667333879,5.58200832,1798.5,1798.3,6.12999998]
[1745667334240,6.08330773,1798.5,1798.3,6.12999998]
[1745667335051,0.3081714,1798.4,1798.3,6.12999998]
[1745667336383,0.29639874,1798.4,1798.3,6.12999998]
[1745667337883,5.58200832,1798.5,1798.3,6.12999998]
[1745667338746,6.14020915,1798.5,1798.3,6.12999998]
[1745667339885,6.56656649,1798.5,1798.3,6.12999998]
[1745667341298,6.00836566,1798.5,1798.3,6.12999998]
[1745667343991,4.78880832,1798.5,1798.3,11.69074967]
[1745667344177,4.78880832,1798.5,1798.3,6.12999998]
[1745667347589,8.60380832,1798.5,1798.4,0.01005854]
[1745667348510,8.91279214,1798.5,1798.4,0.01005854]
[1745667348714,9.80407135,1798.5,1798.4,0.01005854]
[1745667348900,9.40720304,1798.5,1798.4,0.01005854]
[1745667349490,8.51592383,1798.5,1798.4,0.01005854]
[1745667352377,9.83622383,1798.5,1798.4,0.01005854]
[1745667352609,15.89771228,1798.5,1798.4,0.01005854]
[1745667352808,16.19752324,1798.5,1798.4,0.01005854]
[1745667353619,16.19752324,1798.5,1798.0,0.01005854]
[1745667353620,0.55,1798.2,1798.0,0.01005854]
[1745667353773,9.67949941,1798.1,1798.0,0.01005854]
[1745667353977,10.95643317,1798.1,1798.0,0.01005854]
[1745667354525,0.55,1797.8,1797.6,6.12999998]
[1745667354681,6.12619941,1797.7,1797.3,6.12999998]
[1745667354880,0.30842265,1797.6,1797.3,6.12999998]
[1745667355083,3.30842265,1797.6,1797.3,6.12999998]
[1745667355394,4.25188486,1797.6,1797.3,6.12999998]
[1745667356201,3.30842265,1797.6,1797.3,6.12999998]
[1745667356405,3.30842265,1797.6,1797.3,11.6937842]
[1745667357023,3.0,1797.6,1797.4,0.8213]
[1745667357409,3.0,1797.6,1797.3,6.95129998]
[1745667358024,3.0,1797.6,1797.4,5.56358471]
[1745667358185,3.0,1797.6,1797.3,12.51500896]
[1745667358384,3.0,1797.6,1797.3,14.32291921]
[1745667358611,2.99021163,1797.6,1797.3,14.32291921]
[1745667360030,3.80391163,1797.6,1797.3,11.69389691]
[1745667360331,2.99021163,1797.6,1797.3,6.12999998]
[1745667361337,3.41606767,1797.6,1797.3,6.12999998]
[1745667363837,2.99021163,1797.6,1797.3,6.12999998]
[1745667364033,17.4799,1797.9,1797.6,5.56297285]
[1745667364194,4.834,1797.8,1797.6,5.56297285]
[1745667364399,7.834,1797.8,1797.6,5.56297285]
[1745667365134,7.834,1797.8,1797.5,6.38886613]
[1745667366841,7.834,1797.8,1797.5,11.95190887]
[1745667367045,7.834,1797.8,1797.5,6.38864274]
[1745667367950,7.834,1797.8,1797.6,5.56290549]
[1745667368522,7.834,1797.8,1797.7,5.5626634]
[1745667368720,4.834,1797.8,1797.7,12.51176338]
[1745667369846,4.82537239,1797.8,1797.7,12.51176338]
[1745667370349,4.82537239,1797.8,1797.7,6.94909998]
[1745667371231,4.82537239,1797.8,1797.7,12.51176338]
[1745667371942,4.82537239,1797.8,1797.7,6.12999998]
[1745667372146,4.82537239,1797.8,1797.7,11.69266338]
[1745667374263,6.97710963,1797.8,1797.7,6.12999998]
[1745667374433,6.16687239,1797.8,1797.7,6.12999998]
[1745667374639,0.7915,1797.6,1797.3,6.12999998]
[1745667374972,1.29279941,1797.6,1797.3,6.12999998]
[1745667375749,3.8572481,1797.7,1797.0,6.12999998]
[1745667375750,0.7915,1797.3,1797.0,6.12999998]
[1745667376062,4.802,1797.2,1797.0,6.12999998]
[1745667377156,4.802,1797.2,1797.0,11.69482362]
[1745667377351,4.802,1797.2,1797.0,6.12999998]
[1745667378969,3.0,1797.1,1797.0,6.12999998]
[1745667379540,0.55,1797.0,1796.4,6.33826241]
[1745667379736,1.05129941,1797.0,1796.5,5.56614238]
[1745667380051,1.05129941,1797.0,1796.6,5.56606334]
[1745667380960,5.18819883,1797.1,1797.0,0.00671537]
[1745667381266,6.27315371,1797.1,1797.0,0.00671537]
[1745667381434,5.96605429,1797.1,1797.0,0.00671537]
[1745667383304,6.27303941,1797.1,1797.0,0.00671537]
[1745667383864,6.27303941,1797.1,1796.6,0.00671537]
[1745667384778,5.96605429,1797.1,1796.6,0.00671537]
[1745667384985,0.55,1796.9,1796.6,0.00671537]
[1745667385293,4.803,1796.8,1796.6,0.00671537]
[1745667385909,4.803,1796.9,1796.7,6.34823949]
[1745667387008,7.803,1796.9,1796.8,0.00671537]
[1745667387173,7.803,1796.9,1796.8,6.13671535]
[1745667389976,4.803,1796.9,1796.8,12.95067096]
[1745667391004,4.803,1796.9,1796.8,7.38522128]
[1745667391327,4.803,1796.9,1796.8,6.13671535]
[1745667392417,8.353,1796.9,1796.8,6.13671535]
[1745667393015,8.353,1796.9,1796.8,0.00671537]
[1745667394141,8.85429941,1796.9,1796.8,0.00671537]
[1745667394313,9.82148935,1796.9,1796.8,0.00671537]
[1745667395857,7.803,1796.9,1796.8,0.00671537]
[1745667396059,7.803,1796.9,1796.8,5.56544968]
[1745667396358,7.803,1796.9,1796.7,5.56557112]
[1745667396555,4.803,1796.9,1796.7,5.56557112]
[1745667396756,4.803,1796.9,1796.7,5.56552814]
[1745667397049,4.803,1796.9,1796.8,6.12200249]
[1745667397217,4.803,1796.9,1796.8,0.55655281]
[1745667397417,4.803,1796.9,1796.7,5.56551487]
[1745667397855,4.803,1796.9,1796.8,0.7826]
[1745667398469,4.803,1796.9,1796.8,6.34804968]
[1745667398842,4.803,1796.9,1796.8,12.47804966]
[1745667399039,4.79628463,1796.9,1796.8,12.47804966]
[1745667399434,4.79628463,1796.9,1796.8,14.28390611]
[1745667407600,4.79628463,1796.9,1796.8,7.93435643]
[1745667407802,4.79628463,1796.9,1796.8,6.12999998]
[1745667409420,4.79628463,1796.9,1796.8,11.69544966]
[1745667414015,4.79628463,1796.9,1796.8,6.12999998]
[1745667414895,5.55518463,1796.9,1796.8,6.12999998]
[1745667415211,6.11070309,1796.9,1796.5,11.69616212]
[1745667415376,6.11070309,1796.9,1796.6,5.56602164]
[1745667415575,6.11070309,1796.9,1796.5,11.69616212]
[1745667416951,0.7589,1796.8,1796.5,6.12999998]
[1745667417319,1.06721718,1796.8,1796.5,6.12999998]
[1745667419783,0.784,1796.6,1796.5,6.12999998]
[1745667419965,1.334,1796.5,1796.2,6.12999998]
[1745667420272,1.334,1796.5,1796.1,0.05]
[1745667420273,3.0,1796.3,1796.1,0.05]
[1745667421232,3.41511235,1796.3,1796.1,0.05]
[1745667421429,0.34151123,1796.2,1796.1,0.05]
[1745667422122,3.72342953,1796.3,1796.1,0.05]
[1745667422324,3.41511235,1796.3,1796.1,0.05]
[1745667423697,3.0,1796.3,1796.1,5.61760893]
[1745667423866,4.827,1796.4,1796.2,5.56730876]
[1745667424194,4.827,1796.4,1796.2,5.56707564]
[1745667424556,7.827,1796.4,1796.3,5.56699883]
[1745667424785,4.827,1796.4,1796.3,5.56699883]
[1745667425387,4.827,1796.4,1796.3,13.59780626]
[1745667427565,16.705,1796.6,1796.5,5.56637907]
[1745667427771,21.533,1796.6,1796.5,12.48377905]
[1745667428390,21.533,1796.6,1796.5,6.12999998]
[1745667429972,21.533,1796.6,1796.5,11.69637905]
[1745667431737,21.533,1796.6,1796.5,6.12999998]
[1745667432237,26.6863,1796.6,1796.5,6.12999998]
[1745667432447,3.0,1796.5,1796.2,6.12999998]
[1745667433299,3.0,1796.5,1796.2,11.69718579]
[1745667434331,21.533,1796.6,1796.5,5.56637907]
[1745667434731,21.533,1796.6,1796.5,6.39297907]
[1745667435097,21.533,1796.6,1796.4,5.56645795]
[1745667435597,21.533,1796.6,1796.5,5.56637907]
[1745667436833,4.828,1796.6,1796.5,5.56637907]
[1745667438138,4.828,1796.6,1796.4,5.56664537]
[1745667440643,4.828,1796.6,1796.5,5.56637907]
[1745667443941,4.828,1796.6,1796.5,5.56360953]
[1745667447745,4.81812858,1796.6,1796.5,5.56360953]
[1745667448051,4.81812858,1796.6,1796.4,5.56650982]
[1745667448746,4.81812858,1796.6,1796.4,11.6965098]
[1745667450554,4.81812858,1796.6,1796.5,5.56637907]
[1745667458777,4.80975413,1796.6,1796.5,5.56637907]
[1745667459108,0.30852346,1796.8,1796.5,11.69637905]
[1745667459384,5.10852346,1796.8,1796.7,5.56575944]
[1745667459551,4.8,1796.8,1796.5,11.69621018]
[1745667460273,4.8,1796.8,1796.2,5.5670071]
[1745667460274,1.3345,1796.6,1796.2,6.12999998]
[1745667460469,0.7845,1796.4,1796.2,6.12999998]
[1745667460675,4.8,1796.3,1796.2,6.12999998]
[1745667461382,5.10852346,1796.3,1796.2,6.12999998]
[1745667462889,4.8,1796.3,1796.2,6.12999998]
[1745667463392,8.90172828,1796.3,1796.1,0.05]
[1745667463699,4.65238604,1796.2,1796.1,0.05]
[1745667464374,21.36038604,1796.2,1796.1,0.05]
[1745667464691,21.86168545,1796.2,1796.1,0.05]
[1745667467508,0.55,1796.0,1795.2,0.8083]
[1745667467800,1.29549941,1795.5,1795.1,5.62069018]
[1745667467983,4.8,1795.4,1795.1,5.62069018]
[1745667468655,4.8,1795.4,1795.1,11.19115628]
[1745667468768,4.8,1795.4,1795.1,11.19094383]
[1745667468971,4.8,1795.4,1795.1,0.05]
[1745667469183,4.8,1795.4,1795.1,5.62071153]
[1745667470311,3.50129941,1795.3,1795.1,0.05]
[1745667470478,0.7942,1795.2,1795.1,0.05]
[1745667472368,3.0,1795.3,1795.1,5.62072029]
[1745667472682,3.0,1795.3,1795.1,6.42885589]
[1745667472882,4.8,1795.4,1795.1,6.42886939]
[1745667473207,4.8,1795.4,1795.2,5.5702932]
[1745667473722,4.8,1795.4,1795.1,6.42885113]
[1745667474068,4.8,1795.4,1795.1,6.42879623]
[1745667474285,4.8,1795.4,1795.2,5.57039692]
[1745667474485,4.8,1795.4,1795.1,6.42881942]
[1745667474809,4.8,1795.4,1795.1,6.42879698]
[1745667474970,4.8,1795.4,1795.1,6.42879246]
[1745667475176,4.8,1795.4,1795.2,5.57030588]
[1745667475487,4.8,1795.4,1795.1,6.42871077]
[1745667475806,4.8,1795.4,1795.1,11.99918393]
[1745667476008,4.8,1795.4,1795.2,5.57037331]
[1745667476619,4.8,1795.4,1795.1,6.42871077]
[1745667477118,4.8,1795.4,1795.1,0.8583]
[1745667477329,4.8,1795.4,1795.1,6.4288099]
[1745667477623,4.8,1795.4,1795.1,11.99929021]
[1745667477922,4.8,1795.4,1795.1,6.42878031]
[1745667478127,4.8,1795.4,1795.1,0.8583]
[1745667478309,5.67722138,1795.4,1795.1,0.8583]
[1745667478485,5.67722138,1795.4,1795.1,0.05]
[1745667479184,0.7682,1795.3,1795.1,0.05]
[1745667481125,0.7682,1795.3,1795.1,5.62064957]
[1745667481427,4.8,1795.4,1795.1,6.39488658]
[1745667481640,4.8,1795.4,1795.2,5.57040125]
[1745667482701,4.8,1795.4,1795.1,6.39510177]
[1745667483030,4.8,1795.4,1795.1,6.39489432]
[1745667483528,4.8,1795.4,1795.1,0.8244]
[1745667483745,5.75404138,1795.4,1795.1,6.39509401]
[1745667484034,5.75404138,1795.4,1795.1,0.05]
[1745667484521,0.8199,1795.3,1795.1,0.05]
[1745667485201,3.8199,1795.3,1795.1,0.05]
[1745667485947,0.55,1795.2,1795.1,0.05]
[1745667486238,0.98699,1795.2,1795.1,0.05]
[1745667487332,0.55,1795.0,1794.4,6.89109998]
[1745667487538,4.05129941,1794.8,1794.4,6.89109998]
[1745667487832,0.55,1794.6,1794.2,6.33460546]
[1745667488049,4.803,1794.5,1794.2,6.33460546]
[1745667488352,3.0,1794.4,1794.1,6.17999998]
[1745667489036,0.55,1794.3,1794.1,6.17999998]
[1745667489199,0.8005,1794.2,1794.1,6.17999998]
[1745667489397,1.3505,1794.2,1794.1,0.05]
[1745667489914,1.85179941,1794.2,1794.1,0.05]
[1745667490307,2.26883763,1794.2,1794.1,0.05]
[1745667491526,5.26883763,1794.2,1794.1,0.05]
[1745667491726,5.82625523,1794.2,1794.1,0.05]
[1745667492140,5.81904354,1794.2,1794.1,0.05]
[1745667497489,6.893,1794.0,1793.5,0.45441896]
[1745667497619,1.05129941,1793.6,1793.5,0.45441896]
[1745667497822,4.3223,1793.5,1792.9,6.12999998]
[1745667498134,1.3223,1793.2,1792.7,5.57793778]
[1745667498314,3.0,1793.3,1792.8,6.38253551]
[1745667498513,4.805,1793.2,1792.8,6.38276242]
[1745667498715,7.805,1793.2,1793.1,5.62675018]
[1745667498952,4.805,1793.2,1793.1,5.62675018]
[1745667499265,4.805,1793.2,1793.1,5.62677279]
[1745667499621,4.805,1793.2,1793.1,6.43167279]
[1745667499940,3.0,1793.5,1793.3,5.57630172]
[1745667500261,4.805,1793.4,1793.3,5.57630172]
[1745667500627,4.805,1793.4,1793.2,5.57660214]
[1745667500838,4.805,1793.4,1793.1,0.8549]
[1745667501031,4.3223,1793.3,1793.1,0.05]
[1745667501247,10.6728,1793.3,1793.1,0.05]
[1745667501456,4.8028,1793.3,1793.1,0.05]
[1745667501621,8.356,1793.2,1793.1,0.05]
[1745667502753,7.806,1793.2,1793.1,0.05]
[1745667502954,3.0,1793.2,1793.1,5.6269338]
[1745667503151,7.806,1793.2,1793.1,5.6269338]
[1745667503373,16.728,1793.6,1793.2,5.57633231]
[1745667503668,4.806,1793.5,1793.4,5.57600089]
[1745667503962,16.728,1793.6,1793.5,5.57568999]